fUSD/lending_fUSD_20240701
["ID","MTS","AMOUNT","RATE_DAILY","PERIOD"]
[330792562,1719792403462,568.31,0.00011035,2]
[330792563,1719792440980,219.04069876,0.00011199,2]
[330792566,1719792611523,393.91,0.00022,120]
[330792589,1719792631810,-205.0,0.00011554,2]
[330792591,1719792631820,-58.744,0.00011554,2]
[330792592,1719792631869,-909.3869817,0.00011554,2]
[330792593,1719792631881,-12.8690183,0.00011554,2]
[330792594,1719792631890,-171.75370986,0.00012173,2]
[330792595,1719792631899,-500.0,0.00012602,2]
[330792596,1719792631908,-500.0,0.00012602,2]
[330792597,1719792631917,-737.06521094,0.00012856,2]
[330792598,1719792632015,-62.93478906,0.00012856,2]
[330792599,1719792632024,-812.41849551,0.00012871,2]
[330792600,1719792632039,-7607.78987443,0.00012871,2]
[330792601,1719792632054,-621.77146932,0.00012871,2]
[330792602,1719792632065,-883.97785601,0.00012871,2]
[330792603,1719792632076,-450.25,0.00012871,2]
[330792619,1719792637800,-1703.41591,0.00012871,2]
[330792620,1719792637812,-15915.06626744,0.00012871,2]
[330792621,1719792637852,-3558.25409845,0.00012871,2]
[330792622,1719792637863,-441.83331088,0.00012871,2]
[330792623,1719792637877,-5462.33271796,0.00012871,2]
[330792624,1719792637886,-250.0,0.00012876,2]
[330792625,1719792637897,-184.86,0.00012911,2]
[330792626,1719792637907,-2418.54,0.00012953,2]
[330792627,1719792637917,-158.9,0.00013019,2]
[330792628,1719792637927,-931.78,0.00013115,2]
[330792629,1719792637937,-200.0,0.00013136,2]
[330792630,1719792637946,-256.0,0.00013288,2]
[330792631,1719792637955,-150.0,0.00013289,2]
[330792632,1719792637965,-568.31,0.00013299,2]
[330792633,1719792637975,-4597.67792348,0.00013472,2]
[330792634,1719792637984,-254.59873041,0.00013543,2]
[330792635,1719792637995,-2676.82821218,0.0001359,2]
[330792636,1719792638004,-289.6,0.000136,2]
[330792637,1719792638014,-187.54,0.00013699,2]
[330792638,1719792638024,-609.3,0.00013699,2]
[330792639,1719792638034,-159.5,0.00013699,2]
[330792640,1719792638044,-643.84,0.00013699,2]
[330792641,1719792638058,-329.30660916,0.0001386,2]
[330792642,1719792638074,-11287.88232983,0.0001386,2]
[330792643,1719792638086,-2125.34602237,0.0001386,2]
[330792644,1719792638099,-384.30158449,0.0001386,2]
[330792645,1719792638115,-17200.76491054,0.0001386,2]
[330792646,1719792638128,-219.04069876,0.00013889,2]
[330792647,1719792638137,-219.04069876,0.00013899,2]
[330792648,1719792638147,-3077.7619,0.000139,2]
[330792649,1719792638157,-1069.69,0.000139,2]
[330792650,1719792638167,-28259.15843222,0.000139,2]
[330792651,1719792638187,-3426.85472011,0.000139,2]
[330792656,1719792640174,-15591.45045805,0.000139,2]
[330792657,1719792640187,-413.7332465,0.000139,2]
[330792658,1719792640199,-1058.18044309,0.000139,2]
[330792659,1719792640211,-5898.56147334,0.000139,2]
[330792660,1719792640223,-62869.39652669,0.000139,2]
[330792661,1719792640233,-342.3565,0.000139,2]
[330792662,1719792640242,-6588.26325905,0.000139,2]
[330792663,1719792640252,-5625.043,0.000139,2]
[330792664,1719792640263,-320.98963975,0.000139,2]
[330792665,1719792640272,-164.95819459,0.000139,2]
[330792666,1719792640282,-168.92062026,0.00013922,2]
[330792667,1719792640292,-196.34415124,0.0001399,2]
[330792668,1719792640301,-500.0,0.00013998,3]
[330792669,1719792640312,-306.47,0.00013998,3]
[330792670,1719792640321,-500.0,0.00013998,3]
[330792671,1719792640331,-161.94,0.00013998,3]
[330792672,1719792640340,-500.0,0.00013998,3]
[330792673,1719792640350,-500.0,0.00013998,3]
[330792674,1719792640359,-500.0,0.00013998,3]
[330792675,1719792640369,-516.522216,0.00013999,3]
[330792676,1719792640381,-155.28,0.00013999,3]
[330792677,1719792640390,-500.0,0.00013999,3]
[330792678,1719792640400,-500.0,0.00013999,3]
[330792679,1719792640410,-500.0,0.00013999,3]
[330792680,1719792640420,-500.0,0.00013999,3]
[330792681,1719792640429,-500.0,0.00013999,3]
[330792682,1719792640439,-279.21946444,0.00013999,3]
[330792683,1719792640449,-490.0,0.00013999,3]
[330792684,1719792640458,-500.0,0.00013999,3]
[330792685,1719792640469,-500.0,0.00013999,3]
[330792686,1719792640479,-500.0,0.00013999,3]
[330792687,1719792640488,-500.0,0.00013999,3]
[330792688,1719792640498,-500.0,0.00013999,3]
[330792689,1719792640508,-165.61,0.00013999,3]
[330792690,1719792640518,-465.88,0.00013999,3]
[330792691,1719792640527,-392.41,0.00013999,3]
[330792692,1719792640538,-500.0,0.00013999,3]
[330792693,1719792640547,-364.95,0.00013999,3]
[330792694,1719792640566,-208.05,0.00013999,3]
[330792695,1719792640577,-194.29,0.00013999,3]
[330792696,1719792640587,-500.0,0.00013999,3]
[330792697,1719792640598,-606.72,0.00013999,3]
[330792698,1719792640608,-1282.70611,0.00013999,2]
[330792699,1719792640618,-500.0,0.00013999,3]
[330792700,1719792640630,-500.0,0.00013999,3]
[330792701,1719792640641,-170.53,0.00013999,3]
[330792702,1719792640651,-500.0,0.00013999,3]
[330792703,1719792640661,-315.37,0.00013999,3]
[330792704,1719792640671,-487.08,0.00013999,3]
[330792705,1719792640681,-1010.97,0.00013999,3]
[330792706,1719792640691,-400.45968234,0.00013999,3]
[330792707,1719792640701,-500.0,0.00013999,3]
[330792708,1719792640711,-500.0,0.00013999,3]
[330792709,1719792640721,-500.0,0.00013999,3]
[330792710,1719792640731,-500.0,0.00013999,3]
[330792711,1719792640742,-341.8,0.00013999,3]
[330792712,1719792640752,-579.5,0.00013999,3]
[330792713,1719792640762,-154.89,0.00013999,3]
[330792714,1719792640772,-297.05,0.00013999,3]
[330792715,1719792640782,-500.0,0.00013999,3]
[330792716,1719792640792,-500.0,0.00013999,3]
[330792717,1719792640802,-266.23707899,0.00013999,2]
[330792718,1719792640813,-412.96604001,0.00013999,2]
[330792719,1719792640823,-397.42156081,0.00013999,2]
[330792720,1719792640833,-144128.85392337,0.00014,2]
[330792721,1719792640847,-874951.15594012,0.00014,2]
[330792722,1719792640859,-66346.02917856,0.00014,2]
[330792723,1719792640883,-684.33613568,0.00014,2]
[330792724,1719792640895,-7009.41152921,0.00014,2]
[330792725,1719792640905,-2000.0,0.00014,2]
[330792726,1719792640915,-200.0,0.00014,2]
[330792727,1719792640925,-847.98,0.00014,2]
[330792728,1719792640934,-207.12,0.00014,2]
[330792729,1719792640944,-150.0,0.00014,2]
[330792730,1719792640954,-165.76,0.00014,2]
[330792731,1719792640964,-466.05,0.00014,2]
[330792732,1719792640975,-164.73,0.00014,2]
[330792733,1719792640985,-549.93007891,0.00014108,3]
[330792734,1719792640995,-299.56426802,0.00014108,3]
[330792735,1719792641006,-517.06,0.00014108,3]
[330792736,1719792641016,-500.0,0.00014108,3]
[330792737,1719792641026,-500.0,0.00014109,3]
[330792738,1719792641036,-500.0,0.00014109,3]
[330792739,1719792641046,-500.0,0.00014109,3]
[330792740,1719792641062,-500.0,0.00014109,3]
[330792741,1719792641073,-500.0,0.00014109,3]
[330792742,1719792641083,-311.38,0.00014109,3]
[330792743,1719792641095,-500.0,0.00014109,3]
[330792744,1719792641105,-500.0,0.00014109,3]
[330792745,1719792641116,-1010.97,0.00014109,3]
[330792746,1719792641130,-500.0,0.00014109,3]
[330792747,1719792641141,-481.14,0.00014109,3]
[330792748,1719792641152,-500.0,0.00014109,3]
[330792749,1719792641162,-500.0,0.00014109,3]
[330792750,1719792641172,-500.0,0.00014217,3]
[330792751,1719792641182,-426.75,0.00014218,3]
[330792752,1719792641192,-500.0,0.00014218,3]
[330792753,1719792641203,-208.08,0.00014218,3]
[330792754,1719792641213,-500.0,0.00014218,3]
[330792755,1719792641223,-351.73,0.00014218,3]
[330792756,1719792641233,-500.0,0.00014218,3]
[330792757,1719792641243,-501.56487314,0.00014218,3]
[330792758,1719792641252,-1010.97,0.00014218,3]
[330792759,1719792641263,-468.8,0.00014218,3]
[330792760,1719792641273,-500.0,0.00014218,3]
[330792761,1719792641282,-500.0,0.00014218,3]
[330792762,1719792641292,-500.0,0.00014246,2]
[330792763,1719792641302,-600.0,0.00014246,2]
[330792764,1719792641312,-500.0,0.00014246,2]
[330792765,1719792641322,-500.0,0.00014327,3]
[330792766,1719792641332,-500.0,0.00014328,3]
[330792767,1719792641341,-354.52,0.00014328,3]
[330792768,1719792641351,-500.0,0.00014328,3]
[330792769,1719792641360,-1010.97,0.00014328,3]
[330792770,1719792641370,-500.0,0.00014328,3]
[330792771,1719792641382,-500.0,0.00014328,3]
[330792772,1719792641392,-159.5,0.00014384,2]
[330792773,1719792641402,-264.29727916,0.00014393,2]
[330792774,1719792641411,-168.92062026,0.00014411,2]
[330792775,1719792641420,-500.0,0.00014436,3]
[330792776,1719792641430,-297.44,0.00014438,3]
[330792777,1719792641440,-500.0,0.00014438,3]
[330792778,1719792641450,-1010.97,0.00014438,3]
[330792779,1719792641459,-500.0,0.00014438,3]
[330792780,1719792641469,-500.0,0.00014438,3]
[330792781,1719792641479,-800.0,0.00014463,2]
[330792782,1719792641488,-534.013706,0.00014521,2]
[330792783,1719792641498,-6588.26325902,0.00014527,2]
[330792784,1719792641507,-225.0,0.00014538,2]
[330792785,1719792641517,-347.3,0.00014546,3]
[330792786,1719792641527,-500.0,0.00014547,3]
[330792787,1719792641536,-1010.97,0.00014547,3]
[330792788,1719792641545,-175.52,0.00014547,3]
[330792789,1719792641555,-500.0,0.00014547,3]
[330792790,1719792641564,-1000.0,0.000146,2]
[330792791,1719792641574,-500.0,0.00014657,3]
[330792792,1719792641584,-1010.97,0.00014657,3]
[330792793,1719792641594,-500.0,0.00014657,3]
[330792794,1719792641603,-320.98963974,0.00014678,2]
[330792795,1719792641612,-500.0,0.00014766,3]
[330792796,1719792641622,-1010.97,0.00014766,3]
[330792797,1719792641631,-500.0,0.00014766,3]
[330792798,1719792641641,-200.0,0.00014778,2]
[330792799,1719792641651,-1054.20873751,0.00014849,2]
[330792800,1719792641660,-500.0,0.00014876,3]
[330792801,1719792641670,-1010.97,0.00014876,3]
[330792802,1719792641680,-500.0,0.00014876,3]
[330792803,1719792641689,-500.0,0.00014879,2]
[330792804,1719792641699,-154.25003083,0.00014879,2]
[330792805,1719792641711,-45.74996917,0.00014879,2]
[330792806,1719792641721,-219.37863083,0.0001488,2]
[330792807,1719792641733,-280.62136917,0.0001488,2]
[330792808,1719792641742,-500.0,0.0001488,2]
[330792809,1719792641751,-500.0,0.0001488,2]
[330792810,1719792641761,-200.0,0.0001488,2]
[330792811,1719792641771,-200.0,0.0001488,2]
[330792812,1719792641781,-168.92062026,0.000149,2]
[330792813,1719792641790,-590.0,0.000149,2]
[330792814,1719792641800,-3964.04316839,0.000149,2]
[330792815,1719792641811,-3494.28635629,0.000149,2]
[330792816,1719792641821,-291.0,0.00014949,2]
[330792817,1719792641830,-5806.0,0.00014949,2]
[330792818,1719792641840,-5173.0,0.00014949,2]
[330792819,1719792641850,-27270.416,0.00014949,2]
[330792820,1719792641859,-1198.0,0.00014949,2]
[330792821,1719792641869,-1663.0,0.00014949,2]
[330792822,1719792641880,-1069.0,0.00014949,2]
[330792823,1719792641890,-1286.76187843,0.00014966,2]
[330792824,1719792641899,-500.0,0.00014986,3]
[330792825,1719792641909,-1010.97,0.00014986,3]
[330792826,1719792641918,-311.07758741,0.00014986,3]
[330792827,1719792641928,-266.52779578,0.00014986,2]
[330792828,1719792641940,-132412.47220422,0.00014986,2]
[330792829,1719792641950,-209.15726111,0.00014999,2]
[330792830,1719792641959,-45242.67685005,0.00015,2]
[330792831,1719792641971,-1009.71667059,0.00015,2]
[330792832,1719792641987,-1048.0,0.00015,2]
[330792833,1719792641998,-1012.717862,0.00015,2]
[330792834,1719792642010,-9805.63153196,0.00015,2]
[330792835,1719792642021,-12895.07842701,0.00015,2]
[330792836,1719792642032,-1852.95989709,0.00015,2]
[330792837,1719792642044,-1899.99999999,0.00015,2]
[330792838,1719792642059,-403.47012699,0.00015,2]
[330792848,1719792642849,-202.14706647,0.00013574,2]
[330792851,1719792642858,-265.57814627,0.00013999,3]
[330792854,1719792642870,-11.72185373,0.00013999,3]
[330792857,1719792642881,-285.52,0.00013999,3]
[330792859,1719792642890,-202.44445,0.00014099,2]
[330792861,1719792642899,-2469.88940327,0.00015,2]
[330792862,1719792642910,-9186.707166,0.00015,2]
[330792863,1719792642922,-9871.57122128,0.00015,2]
[330792864,1719792642995,-63.76653112,0.00015,2]
[330792865,1719792643008,-3977.57470231,0.00015,2]
[330792866,1719792643024,-6552.87879838,0.00015,2]
[330792867,1719792643046,-3442.55431609,0.00015,2]
[330792868,1719792643090,-365.0,0.00015,2]
[330792869,1719792643103,-461.30189036,0.00015,2]
[330792870,1719792643147,-595.3338411,0.00015,2]
[330792871,1719792643162,-1502.25651494,0.00015,2]
[330792872,1719792643209,-1268.90810758,0.00015,2]
[330792873,1719792643221,-397.00005046,0.00015,2]
[330792890,1719792646031,-311.6,0.0001399,3]
[330792891,1719792646041,-512.21812092,0.00014999,5]
[330792892,1719792646059,-360.95000922,0.00014999,5]
[330792893,1719792646069,-1182.12746227,0.00014999,5]
[330792894,1719792646078,-2871.0340909,0.00015,2]
[330792895,1719792646091,-12259.2665265,0.00015,2]
[330792896,1719792646109,-949.65,0.00015,2]
[330792897,1719792646121,-264.208,0.00015,2]
[330792898,1719792646133,-112560.71429977,0.00015,2]
[330792899,1719792646156,-1056.20952197,0.00015,2]
[330792900,1719792646168,-6193.00715158,0.00015,2]
[330792901,1719792646179,-6008.9,0.00015,2]
[330792902,1719792646191,-52313.20552712,0.00015,2]
[330792903,1719792646217,-2066.50353201,0.00015,2]
[330792904,1719792646228,-347416.68349504,0.00015,2]
[330792905,1719792646240,-656.10874967,0.00015,2]
[330792906,1719792646251,-503.72525369,0.00015,2]
[330792907,1719792646283,-459.4508895,0.00015,2]
[330792908,1719792646295,-17304.56,0.00015,2]
[330792914,1719793759255,-556.47,0.00011667,2]
[330792915,1719793759275,-500.0,0.00012602,2]
[330792916,1719793759296,-400.0,0.00012602,2]
[330792917,1719793759315,-215.0,0.0001334,2]
[330792945,1719793838244,-250.0,0.00013514,2]
[330792946,1719793838253,-787.94090939,0.00013516,2]
[330792947,1719793838263,-48.41830389,0.00013606,2]
[330792950,1719793840271,-183.26169611,0.00013606,2]
[330792951,1719793840282,-264.5768039,0.00013694,2]
[330792954,1719793842059,500.0,0.00012602,2]
[330792961,1719793843208,-255.4231961,0.00013694,2]
[330792962,1719793843218,-287.43331233,0.00013699,2]
[330792963,1719793843423,-17.21668767,0.00013699,2]
[330792964,1719793843433,-159.5,0.00013699,2]
[330792965,1719793843444,-1000.0,0.000138,2]
[330792966,1719793843454,-215.0,0.0001382,2]
[330792967,1719793843463,-258.3008752,0.00013899,2]
[330792968,1719793843472,-312.0457852,0.00013899,2]
[330792969,1719793843484,-556.47,0.00013931,2]
[330792970,1719793843494,-899.64,0.00013973,3]
[330792971,1719793843503,-500.0,0.00013999,3]
[330792972,1719793843512,-500.0,0.00014109,3]
[330792973,1719793843521,-500.0,0.00014218,3]
[330792974,1719793843531,-215.0,0.000143,2]
[330792975,1719793843540,-27.33129835,0.000143,5]
[330792981,1719793846094,-432.05266282,0.00014246,2]
[330792982,1719793846174,-67.94733718,0.00014246,2]
[330792983,1719793846184,-372.66870165,0.000143,5]
[330792984,1719793846194,-500.0,0.00014328,3]
[330792985,1719793846203,-300.0,0.00014399,2]
[330792986,1719793846213,-900.0,0.000144,5]
[330792987,1719793846223,-500.0,0.00014438,3]
[330792988,1719793846232,-528.36761244,0.000145,5]
[330792989,1719793846244,-871.63238756,0.000145,5]
[330792990,1719793846254,-537.72,0.00014547,3]
[330792991,1719793846263,-180.0,0.000146,2]
[330792992,1719793846272,-1900.0,0.000146,5]
[330792993,1719793846282,-2400.0,0.000147,5]
[330792994,1719793846291,-215.0,0.0001479,2]
[330792995,1719793846300,-562.53748,0.00014795,2]
[330792996,1719793846310,-400.0,0.000148,5]
[330792997,1719793846319,-500.0,0.0001488,2]
[330792998,1719793846329,-5490.21938259,0.000149,2]
[330792999,1719793846338,-154.66417482,0.000149,2]
[330793000,1719793846348,-400.0,0.000149,5]
[330793001,1719793846358,-1507.0,0.000149,2]
[330793002,1719793846367,-320.98963974,0.000149,2]
[330793003,1719793846376,-6146.86771066,0.000149,2]
[330793004,1719793846385,-1145.89097,0.00014986,2]
[330793005,1719793846394,-3700.81825935,0.00014999,2]
[330793006,1719793846406,-589.73,0.00014999,3]
[330793007,1719793846416,-583.0,0.00015,2]
[330793008,1719793846425,-5537.0,0.00015,2]
[330793009,1719793846434,-130856.87775767,0.00015,2]
[330793011,1719793846682,-68656.51208102,0.00015,2]
[330793012,1719793846702,-1500.0,0.00015,2]
[330793013,1719793846715,-6134.45000001,0.00015,2]
[330793029,1719794277535,14817.40419422,0.00011199,2]
[330793031,1719794326305,3385.49581862,0.00011199,2]
[330793034,1719794618557,2854.07101433,0.00011199,2]
[330793035,1719794630763,1284.2871572,0.00011199,2]
[330793037,1719794638531,3390.94454164,0.00011199,2]
[330793039,1719794731245,556.7,0.0001109,2]
[330793041,1719794771960,2375.09157428,0.00011199,2]
[330793042,1719794808140,-430.66592486,0.00012302,2]
[330793043,1719794808162,-284.88477203,0.0001241,2]
[330793045,1719794987626,1012.62731708,0.00011199,2]
[330793046,1719795031316,955.85753929,0.00011199,2]
[330793060,1719795032295,-299.99,0.0001251,2]
[330793061,1719795032437,-185.53390305,0.0001251,2]
[330793062,1719795032447,-250.0,0.00012903,2]
[330793063,1719795032456,-150.0,0.00013085,2]
[330793064,1719795032466,-655.25590752,0.00013086,2]
[330793065,1719795032483,-408.85640308,0.00013086,2]
[330793074,1719795038446,-9528.06707726,0.00013086,2]
[330793075,1719795038458,-13287.82061214,0.00013086,2]
[330793076,1719795038468,-1000.0,0.0001313,2]
[330793077,1719795038479,-4650.2,0.00013142,2]
[330793078,1719795038490,-1000.0,0.00013251,2]
[330793079,1719795038499,-5156.43382685,0.00013252,2]
[330793080,1719795038529,-5053.14617315,0.00013252,2]
[330793081,1719795038539,-409.07,0.00013252,2]
[330793082,1719795038549,-556.7,0.00013354,2]
[330793083,1719795038560,-426.51,0.00013354,2]
[330793084,1719795038570,-1723.61,0.00013354,2]
[330793085,1719795038581,-1796.85,0.00013354,2]
[330793086,1719795038591,-150.0,0.0001337,2]
[330793087,1719795038601,-200.0,0.00013388,2]
[330793088,1719795038611,-253.90432169,0.00013543,2]
[330793089,1719795038621,-261.04,0.00013699,2]
[330793090,1719795038631,-159.5,0.00013699,2]
[330793091,1719795038641,-2751.0,0.00013699,2]
[330793092,1719795038651,-528.56417589,0.00013736,2]
[330793093,1719795038661,-261.25,0.00013778,2]
[330793094,1719795038671,-498.98209282,0.00013879,2]
[330793095,1719795038680,-6098.42323645,0.0001388,2]
[330793096,1719795038692,-1909.94196189,0.0001388,2]
[330793097,1719795038704,-952.5944604,0.0001388,2]
[330793098,1719795038715,-11737.32090486,0.0001388,2]
[330793099,1719795038727,-35834.66797063,0.0001388,2]
[330793100,1719795038736,-2829.21023985,0.00013899,2]
[330793101,1719795038746,-4822.77486171,0.000139,2]
[330793102,1719795038759,-484.29211093,0.000139,2]
[330793103,1719795038785,-952.40010513,0.000139,2]
[330793104,1719795038797,-1895.54822223,0.000139,2]
[330793105,1719795038807,-3109.61624536,0.000139,2]
[330793106,1719795038819,-302.84,0.000139,2]
[330793111,1719795040453,-401.45467657,0.000139,2]
[330793112,1719795040465,-500.0008285,0.000139,2]
[330793113,1719795040477,-682.98546543,0.000139,2]
[330793114,1719795040814,-2262.80644746,0.000139,2]
[330793115,1719795040859,-163.42633668,0.000139,2]
[330793116,1719795040870,-3098.42090638,0.0001393,2]
[330793117,1719795040882,-12572.5324456,0.0001393,2]
[330793118,1719795040892,-191.29914187,0.0001393,2]
[330793119,1719795040901,-2867.99063397,0.00013987,2]
[330793120,1719795040911,-5345.04660788,0.00013998,2]
[330793121,1719795040922,-153.6761216,0.00013998,2]
[330793122,1719795040931,-565.16,0.00013999,3]
[330793123,1719795040942,-4605.08899522,0.00014,2]
[330793124,1719795040964,-476.67242762,0.00014,2]
[330793125,1719795040975,-436.72858919,0.00014,2]
[330793210,1719795043864,-3529.30187106,0.00014,2]
[330793231,1719795044012,-59720.08550605,0.00014,2]
[330793233,1719795044023,-52906.94462421,0.00014,2]
[330793239,1719795044075,-44781.60921649,0.00014,2]
[330793259,1719795046588,-137051.84523582,0.00014,2]
[330793260,1719795046600,-3039.53,0.00014,2]
[330793261,1719795046611,-7332.316098,0.00014,2]
[330793262,1719795046641,-316.01403212,0.00014,2]
[330793263,1719795046653,-5555.32055461,0.00014,2]
[330793264,1719795048358,-2176.89212476,0.00014,2]
[330793265,1719795048369,-2246.29326878,0.00014,2]
[330793269,1719795273062,1058.65175085,0.00011199,2]
[330793270,1719795449355,546.90818749,0.00011199,2]
[330793271,1719795459539,290.43605371,0.00011199,2]
[330793272,1719795468099,229.30549032,0.00011199,2]
[330793273,1719795481002,202.01806079,0.00011199,2]
[330793274,1719795498851,263.64797804,0.00011199,2]
[330793275,1719795512580,14175.81148866,0.00011199,2]
[330793280,1719795882097,5382.8324232,0.00011199,2]
[330793281,1719795950188,12436.06416335,0.00011199,2]
[330793284,1719796172151,-501.03,0.00011308,2]
[330793285,1719796172171,-2336.332,0.00012202,2]
[330793318,1719796232694,-183.14282563,0.00012202,2]
[330793319,1719796232705,-157.31848367,0.00012302,2]
[330793320,1719796232718,-1368.24697006,0.00012302,2]
[330793321,1719796232727,-183.14282563,0.00012302,2]
[330793322,1719796232737,-183.14282563,0.00012402,2]
[330793323,1719796232748,-1326.16420608,0.00012502,2]
[330793324,1719796232759,-733.98009392,0.00012502,2]
[330793325,1719796232768,-500.0,0.00012602,2]
[330793326,1719796232778,-250.0,0.00013033,2]
[330793327,1719796232787,-184.86,0.00013075,2]
[330793328,1719796232796,-1000.0,0.0001311,2]
[330793329,1719796232806,-208.22800906,0.00013128,2]
[330793330,1719796232815,-185.34,0.00013353,2]
[330793331,1719796232825,-258.61409544,0.00013516,2]
[330793332,1719796232834,-501.03,0.00013572,2]
[330793333,1719796232845,-159.5,0.00013699,2]
[330793334,1719796232855,-261.04,0.00013699,2]
[330793335,1719796232864,-244.92200197,0.00013802,2]
[330793336,1719796232873,-300.0,0.00013839,2]
[330793337,1719796232883,-5154.5871,0.0001384,2]
[330793338,1719796232892,-1006.22195,0.0001386,2]
[330793339,1719796232901,-150.0,0.00013899,2]
[330793340,1719796233118,-5455.2426,0.000139,2]
[330793341,1719796233127,-1045.196397,0.000139,2]
[330793342,1719796233140,-4899.62605715,0.000139,2]
[330793343,1719796233152,-6177.8998,0.000139,2]
[330793344,1719796233161,-1987.31573346,0.000139,2]
[330793345,1719796234239,647.26467047,0.00011199,2]
[330793353,1719796238505,-3233.4719801,0.000139,2]
[330793354,1719796238519,-11105.87358644,0.000139,2]
[330793355,1719796238528,-5478.97381357,0.000139,2]
[330793356,1719796238540,-1356.00596654,0.000139,2]
[330793357,1719796238607,-7268.87823669,0.000139,2]
[330793358,1719796238617,-6544.9142,0.000139,2]
[330793359,1719796238628,-319.77194175,0.000139,2]
[330793360,1719796238637,-163.62551668,0.00013909,2]
[330793361,1719796238648,-11179.69129676,0.00013912,2]
[330793362,1719796238658,-66942.68867532,0.00013922,2]
[330793363,1719796238668,-218.88190125,0.0001399,2]
[330793364,1719796238679,-500.0,0.00013999,3]
[330793365,1719796238689,-160.11499002,0.00013999,3]
[330793366,1719796238699,-541.61,0.00013999,3]
[330793367,1719796238711,-181181.51615232,0.00014,2]
[330793368,1719796238755,-1316.44260132,0.00014,2]
[330793369,1719796238768,-643.03425761,0.00014,2]
[330793381,1719796239644,-881.09385613,0.00014,2]
[330793382,1719796239657,-1395.9581418,0.00014,2]
[330793383,1719796239670,-857.69234347,0.00014,2]
[330793384,1719796239685,-292.17430624,0.00014,2]
[330793385,1719796239747,-2052.83934429,0.00014,2]
[330793386,1719796239760,-480.2333528,0.00014,2]
[330793387,1719796239772,-95942.73161476,0.00014,2]
[330793388,1719796239785,-35212.92319276,0.00014,2]
[330793389,1719796239797,-6349.71105272,0.00014,2]
[330793390,1719796239852,-1216.61729076,0.00014,2]
[330793391,1719796239866,-6295.2,0.00014,2]
[330793392,1719796240040,-57105.07442558,0.00014,2]
[330793393,1719796240052,-109616.42401765,0.00014,2]
[330793394,1719796240065,-1159.566694,0.00014,2]
[330793395,1719796240077,-3886.73029533,0.00014,2]
[330793396,1719796240122,-396.05309653,0.00014,2]
[330793426,1719796242775,-362.47374371,0.00014,2]
[330793438,1719796242888,-9925.3615008,0.00014,2]
[330793468,1719796243176,-25223.3462004,0.00014,2]
[330793470,1719796243190,-90481.761,0.00014,2]
[330793656,1719796245654,-10316.72263153,0.00014,2]
[330793658,1719796245758,-747.54487454,0.00014,2]
[330793659,1719796245770,-508211.78315822,0.00014,2]
[330793660,1719796245781,-52267.15195366,0.00014,2]
[330793661,1719796245792,-3999.883902,0.00014,2]
[330793662,1719796245804,-2082.79936583,0.00014,2]
[330793663,1719796245861,-2530.83805088,0.00014,2]
[330793664,1719796349758,150.5,0.0001499,30]
[330793665,1719796350226,150.5,0.0001498,30]
[330793666,1719796350343,170.0,0.0001499,30]
[330793667,1719796350699,150.5,0.0001497,30]
[330793668,1719796350788,150.5,0.0001499,30]
[330793669,1719796350823,170.0,0.0001498,30]
[330793670,1719796351258,150.5,0.0001498,30]
[330793671,1719796351299,170.0,0.0001497,30]
[330793672,1719796351734,150.5,0.0001497,30]
[330793673,1719796351815,170.0,0.00015989,30]
[330793674,1719796352301,170.0,0.00015979,30]
[330793675,1719796352773,170.0,0.00015969,30]
[330793676,1719796469895,452.0,0.0001499,30]
[330793677,1719796470188,153.49,0.0001499,30]